Cogmind - Beta 13 @@@ ROGUE MODE // 2024.04.04 @ 17:17:34 Player: captainketchup Result: Destroyed by 7Z-Y6J(R) with Subdweller Laser Performance ------------- Evolutions (0) 0 Regions Visited (3) 600 Robots Destroyed (14) 70 Value Destroyed (288) 288 Prototype IDs (0) 0 Alien Tech Used (0) 0 Bonus (-28) -28 TOTAL SCORE: 930 Bonus ------- Friendly Fire -28 Cogmind --------- Core Integrity 0/250 Matter 245/300 Energy 250/250 System Corruption 0% Temperature Cool (6) Movement Core (300) Ox5 Location -10/Subcaves Parts ------- > --- POWER (1) -------- Ion Engine > --- PROPULSION (2) --- Light Treads > --- UTILITY (2) ------ Medium Storage Unit > --- WEAPON (2) ------- Particle Gun > --- INVENTORY (10) --- Light Ion Engine Light Nuclear Core Wheel Wheel Improved Weapon Shielding Scrap Shield Field Laser Ion Cannon Grenade Launcher Peak State ------------ > --- POWER ------------ Ion Engine > --- PROPULSION ------- Light Treads Wheel > --- UTILITY ---------- Heat Sink Medium Storage Unit > --- WEAPON ----------- Particle Gun Grenade Launcher > --- INVENTORY -------- Light Ion Engine Light Nuclear Core Wheel Wheel Improved Weapon Shielding Scrap Shield Field Laser Ion Cannon Grenade Launcher [Rating: 10] Favorites ----------- Power Ion Engine Engine Ion Engine Propulsion Light Treads Treads Light Treads Wheel Wheel Utility Heat Sink Device Heat Sink Storage Medium Storage Unit Weapon Small Laser Energy Gun Small Laser Launcher Grenade Launcher Build | -11 -10 -10 -10 ------- Run | Yrd Mat Min Sub Slots Evolved . | . . . . Power . | . . . . Propulsion . | . . . . Utility . | . . . . Weapon . | . . . . Parts Attached 12 | 6 4 2 . Power 2 | 1 1 . . Engine 2 | 1 1 . . Core . | . . . . Reactor . | . . . . Propulsion 3 | 2 . 1 . Treads 2 | 2 . . . Leg . | . . . . Wheel 1 | . . 1 . Hover . | . . . . Flight . | . . . . Utility 3 | 1 2 . . Device 1 | . 1 . . Storage 2 | 1 1 . . Processor . | . . . . Hackware . | . . . . Protection . | . . . . Artifact . | . . . . Weapon 4 | 2 1 1 . Energy Gun 3 | 2 1 . . Energy Cannon . | . . . . Ballistic Gun . | . . . . Ballistic Cannon . | . . . . Launcher 1 | . . 1 . Special Weapon . | . . . . Impact Weapon . | . . . . Slashing Weapon . | . . . . Piercing Weapon . | . . . . Special Melee Weapon . | . . . . Unidentified Prototypes . | . . . . Parts Lost 5 | . 1 1 3 Power 1 | . 1 . . Propulsion 2 | . . 1 1 Utility 1 | . . . 1 Weapon 1 | . . . 1 Highest Loss Streak 2 | . 1 1 2 To Critical Strikes . | . . . . Average Slot Usage (%) 98 | . 96 100 91 Engine 13 | . 13 14 14 Treads 20 | . 28 17 14 Wheel 7 | . . 10 14 Device 12 | . 10 14 6 Storage 14 | . 14 14 14 Energy Gun 22 | . 28 19 14 Launcher 5 | . . 8 14 Naked Turns . | . . . . Heaviest Build 22 | 12 20 22 22 Greatest Support 40 | 40 40 40 10 Greatest Overweight (x) 3 | 3 . 2 2 Average Overweight (x) 1 | . . 1 2 Largest Inventory Capacity 10 | 8 10 10 10 Average Capacity 9 | 7 8 10 10 Most Carried 10 | 4 8 10 10 Average Carried 8 | 2 6 9 9 Final Capacity 10 | 8 10 10 10 Final Carried 10 | 4 8 10 10 Class Distribution -------------------- 100% | Mutant Dominant Class ---------------- Mutant | -10/Materials Mutant | -10/Mines Mutant | -10/Subcaves Resources | -11 -10 -10 -10 ----------- Run | Yrd Mat Min Sub Matter Collected 330 | 231 59 40 . Remotely . | . . . . Salvage Created 316 | . 251 59 6 Parts 21 | . 10 7 4 Haulers Intercepted 1 | . 1 . . Recyclers Shooed . | . . . . Parts Field Recycled . | . . . . Retrieved Matter . | . . . . Parts Self-Destructed 4 | . . . 4 Prevented . | . . . . Kills | -11 -10 -10 -10 ------- Run | Yrd Mat Min Sub Combat Hostiles Destroyed 12 | . 5 4 3 Guns 8 | . 5 3 . AOE 4 | . . 1 3 Classes Destroyed 4 | . 2 2 . Tunneler 1 | . . 1 . Hauler 1 | . 1 . . Swarmer 7 | . . 4 3 Grunt 5 | . 5 . . Best Kill Streak 3 | . 1 3 3 Combat Bots Only 3 | . 1 3 3 Max Kills in Single Turn 2 | . 1 1 2 Gunslinging . | . . . . Exploded 2 | . . 1 2 Melee . | . . . . Uniques/NPCs Destroyed . | . . . . Combat | -11 -10 -10 -10 -------- Run | Yrd Mat Min Sub Hostile Shots Fired 89 | . 55 9 25 Missed 22 | . 12 1 9 Damage Taken 930 | . 615 68 247 Core 264 | . 192 23 49 Absorbed by Shields . | . . . . Core Remaining (%) 100 | 100 . . . Volleys Fired 61 | . 43 12 6 Largest 2 | . 2 2 2 Hottest 105 | . 105 105 95 Shots Fired 115 | . 86 22 7 Gun 107 | . 86 20 1 Cannon . | . . . . Launcher 8 | . . 2 6 Special . | . . . . Kinetic . | . . . . Thermal 107 | . 86 20 1 Explosive 8 | . . 2 6 Electromagnetic . | . . . . Robot Hit Streak 15 | . 15 4 2 Robot Miss Streak 4 | . 4 3 2 Penetration Max . | . . . . Secondary Targets . | . . . . Shots Hit Robots 71 | . 64 5 2 Core Hits 29 | . 17 5 7 Critical Kills . | . . . . Critical Parts Destroyed . | . . . . Critical Strikes . | . . . . Melee Attacks . | . . . . Impact . | . . . . Slashing . | . . . . Piercing . | . . . . Sneak Attacks . | . . . . Combat Hostiles . | . . . . Follow-up Attacks . | . . . . Damage Inflicted 1189 | . 713 122 354 Guns 786 | . 713 56 17 Cannons . | . . . . Explosions 403 | . . 66 337 Melee . | . . . . Ramming . | . . . . Kinetic . | . . . . Thermal 786 | . 713 56 17 Explosive 403 | . . 66 337 Electromagnetic . | . . . . Impact . | . . . . Slashing . | . . . . Piercing . | . . . . Highest Corruption . | . . . . Average Corruption . | . . . . Corruption Purged . | . . . . Corruption Blocked . | . . . . Overload Shots . | . . . . Overflow Damage . | . . . . Projectiles . | . . . . Explosions . | . . . . Melee . | . . . . Knockbacks . | . . . . Impact . | . . . . Kinetic . | . . . . Secondary . | . . . . Self-Inflicted Damage 49 | . . . 49 Shots 2 | . . . 2 Rammed 1 | . 1 . . Targets Rammed 1 | . 1 . . Kicked . | . . . . Crushed . | . . . . Highest Temperature 90 | . 48 90 . Average Temperature 20 | . 12 35 . Received Heat Transfer 411 | . 351 . 60 Siege Activations . | . . . . Robots Corrupted . | . . . . Combat Hostiles . | . . . . Parts Fried . | . . . . Impact Corruptions . | . . . . Robots Melted . | . . . . Combat Hostiles . | . . . . Parts Melted 4 | . 4 . . Heat Transferred 1785 | . 1624 124 37 Parts Sabotaged . | . . . . Parts Stolen . | . . . . Parts Stripped . | . . . . Power Chain Reactions . | . . . . Alert | -11 -10 -10 -10 ------- Run | Yrd Mat Min Sub Peak Influence 111 | . 87 111 . Initial 28 | . . 28 . Average 27 | . 26 31 . Maximum Alert Level . | . . . . Low Security (%) 100 | 100 100 100 . Level 1 . | . . . . Level 2 . | . . . . Level 3 . | . . . . Level 4 . | . . . . Level 5 . | . . . . High Security . | . . . . Max Security . | . . . . Squads Dispatched 2 | . 1 1 . Investigation 1 | . . 1 . Extermination . | . . . . Reinforcement 1 | . 1 . . Assault . | . . . . Garrison . | . . . . Intercept . | . . . . Searches Triggered . | . . . . Construction Impeded . | . . . . Haulers Reinforced . | . . . . Active Scanning Responses . | . . . . Cargo Convoy Interrupts . | . . . . Stealth | -11 -10 -10 -10 --------- Run | Yrd Mat Min Sub Distress Signals 3 | . 3 . . Communications Jammed . | . . . . Distress Signals . | . . . . Times Spotted 38 | . 15 5 18 Peak Tracking Total 6 | . 4 3 6 Tactical Retreats 6 | . 3 1 2 Traps | -11 -10 -10 -10 ------- Run | Yrd Mat Min Sub Traps Triggered 1 | . 1 . . Indirectly . | . . . . Trap Hack Attempts . | . . . . Triggered . | . . . . Disarmed . | . . . . Reprogrammed . | . . . . Reused . | . . . . Traps Extracted . | . . . . Installed . | . . . . Triggered . | . . . . Machines | -11 -10 -10 -10 ---------- Run | Yrd Mat Min Sub Machines Disabled 2 | . . . 2 Max in Single Turn 1 | . . . 1 Machines Repaired . | . . . . Machines Dismantled . | . . . . Machines Sabotaged . | . . . . Overloaded Fab Kills . | . . . . Hacking | -11 -10 -10 -10 --------- Run | Yrd Mat Min Sub Machines Accessed 4 | . 3 1 . Terminals 2 | . 2 . . Fabricators . | . . . . Repair Stations . | . . . . Recycling Units 1 | . 1 . . Scanalyzers . | . . . . Garrison Access . | . . . . Total Hacks 6 | . 5 1 . Successful 5 | . 4 1 . Failed 1 | . 1 . . Catastrophic . | . . . . Database Lockouts . | . . . . Manual 2 | . 2 . . Terminals 4 | . 4 . . Fabricators . | . . . . Repair Stations . | . . . . Recycling Units 1 | . 1 . . Scanalyzers . | . . . . Garrison Access . | . . . . Terminal Hacks 4 | . 3 1 . Open Door 1 | . . 1 . Branch Access Points 1 | . 1 . . Unreport Threat 1 | . 1 . . Transport Status 1 | . 1 . . Fabricator Hacks . | . . . . Repair Station Hacks . | . . . . Recycling Unit Hacks 1 | . 1 . . Report Inventory 1 | . 1 . . Scanalyzer . | . . . . Garrison Access Hacks . | . . . . Unauthorized Hacks . | . . . . Terminals . | . . . . Fabricators . | . . . . Repair Stations . | . . . . Recycling Units . | . . . . Scanalyzers . | . . . . Garrison Access . | . . . . Data Cores Recovered . | . . . . Used . | . . . . Hacking Detections 1 | . 1 . . Full Trace Events . | . . . . Feedback Events . | . . . . Feedback Blocked . | . . . . Robot Schematics Acquired . | . . . . Robots Built . | . . . . Authchips . | . . . . Time . | . . . . Total Robot Build Rating . | . . . . Part Schematics Acquired . | . . . . Parts Built . | . . . . Authchips . | . . . . Time . | . . . . Total Part Build Rating . | . . . . Parts Repaired . | . . . . Time . | . . . . Parts Recycled . | . . . . Recycled Matter . | . . . . Retrieved Matter . | . . . . Retrieved Components . | . . . . Parts Scanalyzed . | . . . . Part Schematics Acquired . | . . . . Parts Damaged . | . . . . Bothacking | -11 -10 -10 -10 ------------ Run | Yrd Mat Min Sub Used RIF Installer . | . . . . Robots Hacked . | . . . . Non-combat . | . . . . Combat . | . . . . Robot Hacks Applied . | . . . . Relay Couplers Released . | . . . . Fabnet Peak Effective % . | . . . . Robots Rewired . | . . . . Allies Hacked . | . . . . Hacks Repelled . | . . . . Allies | -11 -10 -10 -10 -------- Run | Yrd Mat Min Sub Total Allies . | . . . . Largest Group . | . . . . Highest-Rated Group . | . . . . Highest-Rated Ally . | . . . . Total Orders . | . . . . Ally Attacks . | . . . . Total Damage . | . . . . Kills . | . . . . Allies Corrupted . | . . . . Allies Melted . | . . . . Intel | -11 -10 -10 -10 ------- Run | Yrd Mat Min Sub Robot Analysis Total . | . . . . Derelict Logs Recovered 1 | . . 1 . Drone Launches . | . . . . Drone Recoveries . | . . . . Exploration | -11 -10 -10 -10 ------------- Run | Yrd Mat Min Sub Turns Passed 1625 | 114 549 889 73 Spaces Moved 1088 | 65 237 733 53 Core 10 | 10 . . . Treads 406 | 55 237 114 . Legs . | . . . . Wheels 672 | . . 619 53 Hover . | . . . . Flight . | . . . . Fastest Speed 50 | 50 160 95 110 Average Speed 126 | 157 160 114 110 Slowest Speed 200 | 200 160 160 110 Overloaded Moves . | . . . . Propulsion Burnouts . | . . . . Robots Hopped . | . . . . Cave-ins Triggered . | . . . . Exploration Rate (%) 38 | 5 44 97 9 Regions Visited 3 Branch Regions 2 Pre-discovered Areas . | . . . . Known Exits Taken 1 | . 1 . . Unknown Exits Taken 2 | 1 . 1 . Scrap Searched 2 | . . 2 . Spaces Dug . | . . . . Terrain Destroyed 27 | . . 10 17 Melee . | . . . . Projectile . | . . . . AOE 27 | . . 10 17 Terrain Rammed . | . . . . Walls Destroyed . | . . . . Machines Disabled . | . . . . Actions | -11 -10 -10 -10 --------- Run | Yrd Mat Min Sub Total 1215 | 74 321 758 62 Wait 35 | . 28 7 . Move 1085 | 64 236 732 53 Hop . | . . . . Pick Up 15 | 4 6 4 1 Fast Attach 8 | 6 2 . . Attach 2 | . 1 1 . Detach . | . . . . Swap 2 | . 1 1 . Drop 6 | . 3 1 2 Fire 61 | . 43 12 6 Melee . | . . . . Ram . | . . . . Kick . | . . . . Crush 1 | . 1 . . Escape Stasis . | . . . . Rewire . | . . . . Trap . | . . . . Miscellaneous . | . . . . Route ------- -11/Scrapyard -10/Materials (discovered 4 exits: [*Mat x2] / *Min x2) -10/Mines (discovered 3 exits: [*Mat x2] / [*Sub]) -10/Subcaves History --------- Turn | Location | Event 24 | -11/Scrapyard | Discovered new exit (range 14) 115 | -11/Scrapyard | Entered Materials 123 | -10/Materials | Identified exit to Mines 295 | -10/Materials | Discovered new exit (range 8) 315 | -10/Materials | Build established: Mutant 397 | -10/Materials | Discovered new exit (range 16) 489 | -10/Materials | Core integrity fell below 50% 664 | -10/Materials | Entered Mines 741 | -10/Mines | Met a Derelict shopkeep closing up shop 865 | -10/Mines | Core integrity fell below 20% 902 | -10/Mines | Discovered new exit (range 6) 983 | -10/Mines | Discovered new exit (range 11) 1233 | -10/Mines | Learned 2 Materials zone layouts 1542 | -10/Mines | Discovered new exit (range 10) 1553 | -10/Mines | Entered Subcaves 1620 | -10/Subcaves | Ambushed by swarm of Subdwellers 1624 | -10/Subcaves | Ambushed by Subdwellers from Twisted Machinery 1626 | -10/Subcaves | Destroyed by 7Z-Y6J(R) with Subdweller Laser Last Messages --------------- S-10 Pest destroyed. HV Slug penetrates S-10 Pest. S-10 Pest knocked back. S-10 Pest destroyed. Machine disabled. S-10 Pest destroyed. Heat Sink destroyed. Machine disabled. Lgt. Assault Rifle fries itself beyond repair. Flight Unit fries itself beyond repair. FT-OSZ(O) puts together Sub. Laser. A mess of Twisted Machinery falls from the cavern ceiling. QH-H49(R) comes tumbling into view. 7Z-Y6J(R) emerges from the Twisted Machinery. O9-UAO(R) emerges from the Twisted Machinery. Z0-K2J(R) angrily emerges from the Twisted Machinery. Grenade Launcher destroyed. Wheel destroyed. Map ----- +----------------------------------------------------+ | ?????????????????????????????????????????????????? | | ?????????????????????????????????????????????????? | | ?????????????????????????????????????????????????? | | ?????????????????????????????????????????????????? | | ?????????????????????????????????????????????????? | | ?????????????????????????????????????????????????? | | ????????????????????????????????? ???????????????? | | ????????????????????????????????? ???????????????? | | ????????????????????????????????? ???????????????? | | ???????????????????????????????## ???? #### ???? | | ??????????????????????????????## ???? ^ ??? | | ?????????????????????????????## ???? ?? | | ??????????????????????????#### ????# #?? | | ??????????????????????????# ????# ??? | | ?????????????????????????## #????# ## #### | | ?????????????????????????# ##??## ## # # | | ?????????????????????????? ##?# | | ???????????????????????????? ?## # | | ?????????????????????????????# #?# # #?# | | ?????????????????????????????# #?# # ##?# | | ?????????????????????????????# #### ### | | ???????????????????#####?????# ## ### | | ??????????????????## ##????# #??# | | ??????????????????# ###?## #??# | | ?????????????????## ###g ## ##?# | | ?????????????????# @ g #### %### | | ?????????????????# R ##??## ## | | ?????????????????#"RR O## ##????#### # | | ?????????????????#" R ### #????????## # | | ??????????????? R ## ##?????????# ## # | | ?????????????# ##??????????# ## | | ?????????????## #??????? % | | ??????????????## ?????? ### % ## | | ???????????????# ???????? ???## %### | | ?????????????? #### ?????? ?????## #?# | | ?????????????? % ???# ????? ????????##### | | ????????????? ???? ### ?????????????????# | | ?????????????## ??? ?? ?????????????????# | | ???????????????????? ??# ????????????????# | | ???????????????????? ??? ????????????????# | | ???????????????????? ##??? ???????????????# | | ???????????????????????????????????????????# | | ???????????????????????????????????????????## | | ????????????????????????????????????????????# | | ????????????????????????????????????????????# | | ????????????????????????????????????????????# | | ??????????????????????????????????????????????? | | ?????????????????????????????????????????????????? | | ?????????????????????????????????????????????????? | | ?????????????????????????????????????????????????? | +----------------------------------------------------+ Best States ------------- Heat Dissipation 35 Energy Generation 10 Energy Capacity 250 Matter Stores 300 Matter Capacity 300 Sight Range 16 Terrain Scan Density 10 Evasion (%) 41 Recoil Reduction 2 Item Schematics ----------------- None Robot Schematics ------------------ None Fabricated ------------ Nothing Alien Tech Used ----------------- None Achievements -------------- None Challenges ------------ None Game ------ Seed MatterKineticNeutralizer Manual? 0 Play Time 00:15:58 Cumulative 11.0 hours Start 2024.04.04 @ 17:03:13 End 2024.04.04 @ 17:17:34 Sessions 1 Manual Loads 0 Difficulty Rogue Special Mode None Game No. 9 Rogue 9 Adventurer 0 Explorer 0 Win Type - Total 0 Types 0/0/0/0/0/0/0/0/0 Lore% 24 Gallery% 18 Achievement% 24 Wizard Run 0 Options --------- Layout 1 ASCII 0 Keyboard 0 Movement Arrows Keybinds 0 Fullscreen 0 Font 20/SmallcapsGlow Map View 50x35 Zoom Use 0% Tactical HUD 0 Map Filters NONE Filters NONE Steam 1 RUN: eac156f4-c2dd-44ec-9b5a-30603eb578e1